Cogmind - Beta 12 @@@ ROGUE MODE // 2023.04.12 @ 15:07:40 Player: kaj Result: Destroyed by S-10 Pest with Light Assault Rifle Performance ------------- Evolutions (0) 0 Regions Visited (2) 400 Robots Destroyed (20) 100 Value Destroyed (510) 510 Prototype IDs (0) 0 Alien Tech Used (0) 0 Bonus (0) 0 TOTAL SCORE: 1010 Bonus ------- None Cogmind --------- Core Integrity 0/250 Matter 266/300 Energy 239/250 System Corruption 0% Temperature Cool (24) Movement Rolling (140) Ox4 Location -10/Mines Parts ------- > --- POWER (1) -------- Ion Engine > --- PROPULSION (2) --- Wheel Wheel > --- UTILITY (2) ------ Huge Storage Unit Terrain Scanner > --- WEAPON (2) ------- Small Laser Assault Cannon > --- INVENTORY (25) --- Light Ion Engine Light Ion Engine Light Ion Engine Aluminum Leg Aluminum Leg Aluminum Leg Heat Sink Large Storage Unit Medium Matter Pod (100) High-capacity Matter Pod (0) Improved Weapon Shielding Improved Trap Extractor (0/6) Mining Laser Scythe Peak State ------------ > --- POWER ------------ Ion Engine > --- PROPULSION ------- Aluminum Leg Aluminum Leg > --- UTILITY ---------- Huge Storage Unit Improved Trap Extractor > --- WEAPON ----------- Small Laser Assault Cannon > --- INVENTORY -------- Light Ion Engine Light Ion Engine Large Storage Unit Medium Matter Pod Improved Weapon Shielding Mining Laser Scythe [Rating: 13] Favorites ----------- Power Ion Engine Engine Ion Engine Propulsion Light Treads Treads Light Treads Leg Aluminum Leg Wheel Wheel Utility Huge Storage Unit Device Improved Trap Extractor Storage Huge Storage Unit Weapon Small Laser Energy Gun Small Laser Ballistic Gun Light Assault Rifle Ballistic Cannon Assault Cannon Special Weapon Mining Laser Build | -11 -10 -10 ------- Run | Jun Mat Min Slots Evolved . | . . . Power . | . . . Propulsion . | . . . Utility . | . . . Weapon . | . . . Parts Attached 30 | . 14 16 Power 6 | . 4 2 Engine 6 | . 4 2 Core . | . . . Reactor . | . . . Propulsion 8 | . 4 4 Treads 2 | . 2 . Leg 2 | . . 2 Wheel 4 | . 2 2 Hover . | . . . Flight . | . . . Utility 5 | . 2 3 Device 4 | . 1 3 Storage 1 | . 1 . Processor . | . . . Hackware . | . . . Protection . | . . . Artifact . | . . . Weapon 11 | . 4 7 Energy Gun 3 | . 1 2 Energy Cannon . | . . . Ballistic Gun 3 | . . 3 Ballistic Cannon 3 | . 1 2 Launcher . | . . . Special Weapon 2 | . 2 . Impact Weapon . | . . . Slashing Weapon . | . . . Piercing Weapon . | . . . Special Melee Weapon . | . . . Unidentified Prototypes . | . . . Parts Lost 12 | . 4 8 Power 1 | . . 1 Propulsion 4 | . 2 2 Utility 1 | . 1 . Weapon 6 | . 1 5 Highest Loss Streak 3 | . 3 3 To Critical Strikes . | . . . Average Slot Usage (%) 89 | . 92 88 Engine 10 | . 13 8 Treads 14 | . 11 15 Leg 7 | . 1 10 Wheel 5 | . 14 1 Device 8 | . 7 9 Storage 14 | . 14 14 Energy Gun 10 | . 13 8 Ballistic Gun 11 | . 9 12 Ballistic Cannon 4 | . 1 6 Special Weapon 1 | . 3 . Naked Turns . | . . . Heaviest Build 94 | 8 89 94 Greatest Support 40 | 20 40 40 Greatest Overweight (x) 8 | . 8 4 Average Overweight (x) 3 | . 3 2 Largest Inventory Capacity 25 | 8 25 25 Average Capacity 24 | 8 23 25 Most Carried 15 | 7 11 15 Average Carried 9 | 7 9 10 Final Capacity 25 | 8 25 25 Final Carried 14 | 7 10 14 Class Distribution -------------------- 100% | Mutant Dominant Class ---------------- Mutant | -10/Materials Mutant | -10/Mines Resources | -11 -10 -10 ----------- Run | Jun Mat Min Matter Collected 725 | 200 304 221 Remotely . | . . . Salvage Created 617 | . 410 207 Parts 39 | . 23 16 Haulers Intercepted . | . . . Recyclers Shooed 1 | . . 1 Parts Field Recycled . | . . . Retrieved Matter . | . . . Parts Self-Destructed . | . . . Prevented . | . . . Kills | -11 -10 -10 ------- Run | Jun Mat Min Combat Hostiles Destroyed 18 | . 12 6 Guns 15 | . 11 4 Cannons 3 | . 1 2 Classes Destroyed 4 | . 2 2 Worker 1 | . . 1 Recycler 1 | . . 1 Swarmer 7 | . 3 4 Grunt 11 | . 9 2 Best Kill Streak 4 | . 4 2 Combat Bots Only 4 | . 4 2 Max Kills in Single Turn 2 | . 2 1 Gunslinging 1 | . 1 . Exploded . | . . . Melee . | . . . Uniques/NPCs Destroyed . | . . . Combat | -11 -10 -10 -------- Run | Jun Mat Min Damage Taken 1359 | . 588 771 Core 253 | . 142 111 Absorbed by Shields . | . . . Core Remaining (%) 100 | 100 . . Volleys Fired 78 | . 38 40 Largest 2 | . 2 2 Hottest 140 | . 140 84 Shots Fired 142 | . 74 68 Gun 116 | . 65 51 Cannon 22 | . 5 17 Launcher . | . . . Special 4 | . 4 . Kinetic 85 | . 33 52 Thermal 57 | . 41 16 Explosive . | . . . Electromagnetic . | . . . Robot Hit Streak 14 | . 14 7 Robot Miss Streak 5 | . 3 5 Penetration Max . | . . . Secondary Targets 3 | . 3 . Max Gunslinging Chain 1 | . 1 . Shots Hit Robots 85 | . 49 36 Core Hits 37 | . 24 13 Critical Kills . | . . . Critical Parts Destroyed . | . . . Critical Strikes 1 | . . 1 Blast 1 | . . 1 Melee Attacks . | . . . Impact . | . . . Slashing . | . . . Piercing . | . . . Sneak Attacks . | . . . Combat Hostiles . | . . . Follow-up Attacks . | . . . Damage Inflicted 979 | . 543 436 Guns 716 | . 492 224 Cannons 260 | . 51 209 Explosions . | . . . Melee . | . . . Ramming 3 | . . 3 Kinetic 584 | . 230 354 Thermal 392 | . 313 79 Explosive . | . . . Electromagnetic . | . . . Impact . | . . . Slashing . | . . . Piercing . | . . . Highest Corruption . | . . . Average Corruption . | . . . Corruption Purged . | . . . Corruption Blocked . | . . . Overload Shots . | . . . Overflow Damage . | . . . Projectiles . | . . . Explosions . | . . . Melee . | . . . Knockbacks 4 | . 1 3 Impact . | . . . Kinetic 4 | . 1 3 Secondary . | . . . Self-Inflicted Damage . | . . . Shots . | . . . Rammed 1 | . . 1 Targets Rammed 1 | . . 1 Kicked . | . . . Crushed . | . . . Highest Temperature 153 | . 111 153 Average Temperature 41 | . 27 61 Received Heat Transfer 576 | . 306 270 Siege Activations . | . . . Robots Corrupted . | . . . Combat Hostiles . | . . . Parts Fried . | . . . Impact Corruptions . | . . . Robots Melted . | . . . Combat Hostiles . | . . . Parts Melted . | . . . Heat Transferred 875 | . 700 175 Parts Sabotaged . | . . . Parts Stolen . | . . . Parts Stripped . | . . . Power Chain Reactions . | . . . Missiles Intercepted . | . . . Alert | -11 -10 -10 ------- Run | Jun Mat Min Peak Influence 323 | . 323 175 Initial 90 | . . 90 Average 65 | . 153 29 Maximum Alert Level 1 | . 1 . Low Security (%) 89 | 100 64 100 Level 1 10 | . 35 . Level 2 . | . . . Level 3 . | . . . Level 4 . | . . . Level 5 . | . . . High Security . | . . . Max Security . | . . . Squads Dispatched 3 | . 3 . Investigation . | . . . Extermination . | . . . Reinforcement 3 | . 3 . Assault . | . . . Garrison . | . . . Intercept . | . . . Searches Triggered . | . . . Construction Impeded . | . . . Haulers Reinforced . | . . . Active Scanning Responses . | . . . Cargo Convoy Interrupts . | . . . Stealth | -11 -10 -10 --------- Run | Jun Mat Min Distress Signals 2 | . 2 . Communications Jammed . | . . . Distress Signals . | . . . Times Spotted 29 | . 21 8 Peak Tracking Total 5 | . 5 3 Tactical Retreats 4 | . 3 1 Traps | -11 -10 -10 ------- Run | Jun Mat Min Traps Triggered 3 | . . 3 Indirectly . | . . . Trap Hack Attempts . | . . . Triggered . | . . . Disarmed . | . . . Reprogrammed . | . . . Reused . | . . . Traps Extracted . | . . . Installed . | . . . Triggered . | . . . Machines | -11 -10 -10 ---------- Run | Jun Mat Min Machines Disabled 2 | . 1 1 Max in Single Turn 1 | . 1 1 Machines Repaired . | . . . Machines Sabotaged . | . . . Overloaded Fab Kills . | . . . Hacking | -11 -10 -10 --------- Run | Jun Mat Min Machines Accessed 4 | . 3 1 Terminals 3 | . 3 . Fabricators . | . . . Repair Stations . | . . . Recycling Units . | . . . Scanalyzers . | . . . Garrison Access . | . . . Total Hacks 10 | . 9 1 Successful 4 | . 3 1 Failed 6 | . 6 . Catastrophic 1 | . 1 . Database Lockouts . | . . . Manual 7 | . 7 . Terminals 9 | . 9 . Fabricators . | . . . Repair Stations . | . . . Recycling Units . | . . . Scanalyzers . | . . . Garrison Access . | . . . Terminal Hacks 4 | . 3 1 Open Door 1 | . . 1 Branch Access Points 1 | . 1 . Zone Layout 2 | . 2 . Fabricator Hacks . | . . . Repair Station Hacks . | . . . Recycling Unit Hacks . | . . . Scanalyzer . | . . . Garrison Access Hacks . | . . . Unauthorized Hacks . | . . . Terminals . | . . . Fabricators . | . . . Repair Stations . | . . . Recycling Units . | . . . Scanalyzers . | . . . Garrison Access . | . . . Data Cores Recovered . | . . . Used . | . . . Hacking Detections 2 | . 2 . Full Trace Events . | . . . Feedback Events . | . . . Feedback Blocked . | . . . Robot Schematics Acquired . | . . . Robots Built . | . . . Authchips . | . . . Time . | . . . Total Robot Build Rating . | . . . Part Schematics Acquired . | . . . Parts Built . | . . . Authchips . | . . . Time . | . . . Total Part Build Rating . | . . . Parts Repaired . | . . . Time . | . . . Parts Recycled . | . . . Recycled Matter . | . . . Retrieved Matter . | . . . Retrieved Components . | . . . Parts Scanalyzed . | . . . Part Schematics Acquired . | . . . Parts Damaged . | . . . Bothacking | -11 -10 -10 ------------ Run | Jun Mat Min Used RIF Installer . | . . . Robots Hacked . | . . . Non-combat . | . . . Combat . | . . . Robot Hacks Applied . | . . . Relay Couplers Released . | . . . Fabnet Peak Effective % . | . . . Robots Rewired . | . . . Allies Hacked . | . . . Hacks Repelled . | . . . Allies | -11 -10 -10 -------- Run | Jun Mat Min Total Allies . | . . . Largest Group . | . . . Highest-Rated Group . | . . . Highest-Rated Ally . | . . . Total Orders . | . . . Ally Attacks . | . . . Total Damage . | . . . Kills . | . . . Allies Corrupted . | . . . Allies Melted . | . . . Intel | -11 -10 -10 ------- Run | Jun Mat Min Robot Analysis Total . | . . . Derelict Logs Recovered 1 | . . 1 Drone Launches . | . . . Drone Recoveries . | . . . Exploration | -11 -10 -10 ------------- Run | Jun Mat Min Turns Passed 2485 | 5 724 1756 Spaces Moved 809 | 3 297 509 Core . | . . . Treads 330 | . 56 274 Legs 188 | 3 32 153 Wheels 291 | . 209 82 Hover . | . . . Flight . | . . . Fastest Speed 80 | 120 80 140 Average Speed 266 | 120 182 315 Slowest Speed 480 | 120 320 480 Overloaded Moves . | . . . Propulsion Burnouts . | . . . Robots Hopped . | . . . Cave-ins Triggered . | . . . Exploration Rate (%) 53 | 3 68 88 Regions Visited 2 Branch Regions 1 Pre-discovered Areas 1 | . . 1 Known Exits Taken 1 | . 1 . Unknown Exits Taken 1 | 1 . . Scrap Searched 1 | . . 1 Spaces Dug 3 | . 3 . Terrain Destroyed 4 | . 3 1 Melee . | . . . Projectile 4 | . 3 1 AOE . | . . . Terrain Rammed . | . . . Walls Destroyed . | . . . Machines Disabled . | . . . Actions | -11 -10 -10 --------- Run | Jun Mat Min Total 997 | 5 396 596 Wait 53 | 2 36 15 Move 807 | 2 296 509 Hop . | . . . Pick Up 22 | . 9 13 Fast Attach 1 | . . 1 Attach 18 | . 7 11 Detach 4 | 1 1 2 Swap 11 | . 7 4 Drop 2 | . 2 . Fire 78 | . 38 40 Melee . | . . . Ram . | . . . Kick . | . . . Crush 1 | . . 1 Escape Stasis . | . . . Rewire . | . . . Trap . | . . . Miscellaneous . | . . . Route ------- -11/Junkyard -10/Materials (discovered 3 exits: [*Mat x2] / *Min) -10/Mines (discovered 2 exits: [*Mat x2]) History --------- Turn | Location | Event 4 | -11/Junkyard | Discovered new exit (range 3) 6 | -11/Junkyard | Entered Materials 57 | -10/Materials | Identified exit to Mines 318 | -10/Materials | Build established: Mutant 384 | -10/Materials | Discovered new exit (range 16) 481 | -10/Materials | Core integrity fell below 50% 554 | -10/Materials | Lost 3 parts (1n1u1w) 634 | -10/Materials | Discovered new exit (range 5) 730 | -10/Materials | Entered Mines 771 | -10/Mines | Met a Derelict bent on vengeance 1269 | -10/Mines | Met a Derelict who couldn't figure out how to use a Trap Extractor 1332 | -10/Mines | Discovered new exit (range 9) 1396 | -10/Mines | Discovered new exit (range 16) 1680 | -10/Mines | Core integrity fell below 20% 1760 | -10/Mines | Lost 3 parts (1n2w) 1994 | -10/Mines | Learned location of Mines (-9) 2486 | -10/Mines | Destroyed by S-10 Pest with Light Assault Rifle Last Messages --------------- 01753_ Acquired Aluminum Leg. 01762_ Acquired 19 matter. 01766_ Acquired 11 matter. 01950_ T-07 Excavator is excavating. 01994_ Acquired derelict log, extracted data. World map updated: -9/Mines. 02344_ R-06 Scavenger suffers critical hit (Blast). 02344_ R-06 Scavenger destroyed. 02347_ K-01 Serf destroyed. 02354_ Acquired Wheel. 02364_ Acquired 58 matter. 02365_ Acquired 1 matter. 02367_ Acquired 29 matter. 02370_ Acquired Lgt. Ion Engine. 02379_ DB-FDT(g): "I WILL HAVE VENGEANCE!" 02425_ Acquired Heat Sink. 02435_ Acquired Hcp. Matter Pod. 02452_ Acquired Terrain Scanner. 02486_ S-10 Pest destroyed. 02486_ Seismic Survey Station disabled. Map ----- +----------------------------------------------------+ | | | | | | | | | | | | | | | | | | | | | ????????????????????????????????? | | ????????????????????????????????? | | ????????????????????????????????? | | ????????????????????????????????? | | ????????????????????????????????? | | ????????????????????????????????? | | ????????????????????????###?????? | | ??????????????????????? ????? | | ?????????????#????????? ???? | | ????????????????????????"""?? ??? | | ????????????????????????"""?????? | | ????????????????????????" "?????? | | ???????????????????????? ?????? | | ???????????##?#???????###*##????? | | ??????????? ##????????? s%[#????? | | ?????????? ???????????#@#?????? | | ?????????? #????????####s#????## | | ###??????? #???#????# #?????? | | ##????? ### #????# ####?????? | | #????? #????# #????????? | | ###### #???????# #????????# | | #???????# #????????? | | #????##### ##???????? | | ###### # ##???## ## ##????#?? | | ##????# #??###### ##?????? | | #?????# #### ## #?????? | | ##????# #?????? | | #????##### ##??#?? | | #????????# ##???? | | =#????????## ## #???? | | !#?????????#### ## #???? | | #????????????### ### #???? | | #??????????????######?# #???? | | #??????????????????#??## ##???? | | #??????????????????????####????? | | #???????????#??????????????????? | | #??????????????????????????????? | | ##??????????????????????????????? | | ????????????????????????????????? | | ????????????????????????????????? | +----------------------------------------------------+ Best States ------------- Heat Dissipation 25 Energy Generation 10 Energy Capacity 250 Matter Stores 300 Matter Capacity 300 Sight Range 16 Terrain Scan Range 14 Terrain Scan Density 10 Evasion (%) 55 Recoil Reduction 2 Trap Extractor Capacity 6 Item Schematics ----------------- None Robot Schematics ------------------ None Fabricated ------------ Nothing Alien Tech Used ----------------- None Achievements -------------- None Challenges ------------ None Game ------ Seed InsulatedGaussAxe Manual? 0 Play Time 00:15:24 Cumulative 128.6 hours Start 2023.04.12 @ 14:56:46 End 2023.04.12 @ 15:07:40 Sessions 1 Manual Loads 0 Difficulty Rogue Special Mode None Game No. 194 Rogue 194 Adventurer 0 Explorer 0 Win Type - Total 0 Types 0/0/0/0/0/0/0/0/0 Lore% 48 Gallery% 55 Achievement% 43 Wizard Run 0 Options --------- ASCII 0 Keyboard 0 Movement Mouse Keybinds 1 Fullscreen 2 Font 18/SmallcapsGlow Map View 76x50 Tactical HUD 1 Map Filters SATURATION(75) Filters LOW_CONTRAST(23,23,23) Steam 1 RUN: c56f6a19-a1df-4615-b253-7f5a22a4a017